bitfinex/quotes_BTCUSD_20251202
["timestamp","ask_amount","ask_price","bid_price","bid_amount"]
[1764684976552,0.23724652,88516.0,88512.0,0.23725527]
[1764684976746,0.00024567,88518.0,88515.0,0.01129752]
[1764684977134,0.00024567,88518.0,88516.0,0.02287122]
[1764684977304,0.00024567,88518.0,88517.0,0.29087529]
[1764684977557,0.00024567,88518.0,88517.0,0.39954651]
[1764684979840,0.00024567,88518.0,88517.0,2.39954651]
[1764684980038,0.00024567,88518.0,88517.0,2.72254651]
[1764684980237,0.00024567,88518.0,88517.0,2.72354651]
[1764684980463,0.00024567,88518.0,88517.0,3.1860695]
[1764684980627,0.0112905,88570.0,88549.0,0.22586364]
[1764684980823,0.00031424,88550.0,88549.0,0.41762486]
[1764684982811,0.0112956,88530.0,88529.0,0.01816]
[1764684982925,0.0112956,88530.0,88521.0,0.02385]
[1764684982926,0.01129637,88524.0,88521.0,0.02385]
[1764684983133,0.22593047,88523.0,88522.0,0.0182]
[1764684983376,0.01129598,88527.0,88522.0,0.0182]
[1764684983566,0.23722337,88525.0,88524.0,0.02287122]
[1764684983968,0.01129803,88511.0,88503.0,0.09709905]
[1764684984168,0.01129777,88513.0,88512.0,0.02287122]
[1764684984545,0.22597338,88506.0,88505.0,0.04683554]
[1764684984746,0.22597338,88506.0,88505.0,0.06503554]
[1764684985035,0.01129841,88508.0,88507.0,0.02287122]
[1764684985240,0.23726786,88508.0,88507.0,0.08780122]
[1764684985699,0.01129841,88508.0,88507.0,0.08780122]
[1764684986079,0.23726173,88510.0,88507.0,0.06493]
[1764684986283,0.22592756,88524.0,88514.0,0.01129764]
[1764684986602,0.22593393,88522.0,88520.0,0.02287122]
[1764684986805,0.01129637,88524.0,88521.0,0.02385]
[1764684987102,0.22593055,88523.0,88522.0,0.02287122]
[1764684989275,0.22593055,88523.0,88521.0,0.02385]
[1764684989921,0.22594274,88518.0,88517.0,0.01816]
[1764684990118,0.22596435,88510.0,88509.0,0.02287122]
[1764684990323,0.01129764,88514.0,88509.0,0.04103122]
[1764684990496,0.22596154,88511.0,88509.0,0.01816]
[1764684991131,0.22596094,88511.0,88509.0,0.01816]
[1764684991343,0.0112979,88512.0,88507.0,0.01129854]
[1764684991556,0.04662,88520.0,88511.0,0.29089061]
[1764684991855,0.22594302,88518.0,88514.0,0.01129764]
[1764684992156,0.01129573,88529.0,88525.0,0.02287122]
[1764684992353,0.22616796,88526.0,88525.0,0.02287122]
[1764684992629,0.00024564,88526.0,88525.0,0.02287122]
[1764684992754,0.00024564,88526.0,88525.0,0.14845]
[1764684992948,0.22616796,88526.0,88525.0,0.14845]
[1764684993429,0.00024564,88526.0,88525.0,0.14845]
[1764684993583,0.00024564,88526.0,88525.0,0.39696735]
[1764684993786,0.00024564,88526.0,88525.0,0.17132122]
[1764684994166,0.0112979,88512.0,88506.0,0.01129866]
[1764684994354,0.22595224,88515.0,88514.0,0.02287122]
[1764684994553,0.01129764,88514.0,88513.0,0.02287122]
[1764684994791,0.23725059,88514.0,88513.0,0.02287122]
[1764684995195,0.01129764,88514.0,88506.0,0.01129866]
[1764684995508,0.01129688,88520.0,88513.0,0.02287122]
[1764684995711,0.01129713,88518.0,88514.0,0.23725047]
[1764684995856,0.2259507,88515.0,88513.0,0.02287122]
[1764684996056,0.22595295,88514.0,88513.0,0.02287122]
[1764684996272,0.23722954,88522.0,88521.0,0.02287122]
[1764684997022,0.01129637,88524.0,88519.0,0.011297]
[1764684997231,0.22616845,88526.0,88524.0,0.02287122]
[1764684997482,0.22592524,88525.0,88524.0,0.02287122]
[1764684997653,0.00024564,88526.0,88525.0,0.29092487]
[1764684998150,0.00024564,88526.0,88523.0,0.03514649]
[1764684998151,0.22616796,88526.0,88523.0,0.02385]
[1764684998328,0.22592743,88524.0,88523.0,0.02385]
[1764684998544,0.22592743,88524.0,88523.0,0.04201]
[1764684998851,0.00024564,88526.0,88523.0,0.04201]
[1764684999068,0.00024564,88526.0,88525.0,0.24879609]
[1764684999354,0.00224564,88526.0,88525.0,0.24879609]
[1764684999585,0.00224564,88526.0,88525.0,0.37672487]
[1764684999801,0.0002,88550.0,88549.0,0.24873486]
[1764685000039,0.0002,88550.0,88549.0,0.41548486]
[1764685000217,0.0002,88550.0,88549.0,0.81548486]
[1764685000412,0.67520102,88590.0,88583.0,0.01128884]
[1764685000568,0.67520102,88590.0,88588.0,0.02287122]
[1764685000569,4.211e-05,88590.0,88588.0,0.02287122]
[1764685000994,0.00042312,88590.0,88589.0,0.22576166]
[1764685001169,0.00042312,88590.0,88588.0,0.02287122]
[1764685001369,0.23705792,88587.0,88585.0,0.02287122]
[1764685001572,0.01171107,88590.0,88584.0,0.06471]
[1764685001573,0.00042312,88590.0,88587.0,0.22576676]
[1764685001893,0.00042312,88590.0,88573.0,0.08235]
[1764685001894,0.23705792,88587.0,88582.0,0.02287122]
[1764685002059,0.23705842,88586.0,88583.0,0.0182]
[1764685002256,0.2370592,88586.0,88583.0,0.0182]
[1764685002458,0.22577342,88585.0,88583.0,0.0182]
[1764685002904,0.22577695,88583.0,88582.0,0.02287122]
[1764685003104,0.22577695,88583.0,88582.0,0.04103122]
[1764685003304,0.22577526,88584.0,88582.0,0.04103122]
[1764685003506,0.01128833,88587.0,88582.0,0.05232019]
[1764685003722,0.23706084,88585.0,88582.0,0.05232019]
[1764685003967,0.2257744,88584.0,88582.0,0.04103122]
[1764685004112,0.22580499,88572.0,88571.0,0.02287122]
[1764685004317,0.23708298,88577.0,88571.0,0.01816]
[1764685004582,0.01129279,88552.0,88541.0,0.08235]
[1764685004732,0.01129152,88562.0,88510.0,0.81518089]
[1764685004733,0.01129292,88551.0,88542.0,0.054]
[1764685005056,0.23716047,88548.0,88547.0,0.02287122]
[1764685005288,0.01129343,88547.0,88545.0,0.02287122]
[1764685005504,0.22587895,88543.0,88537.0,0.02258942]
[1764685005670,0.22587895,88543.0,88515.0,0.04651]
[1764685005671,0.01129598,88527.0,88515.0,0.04651]
[1764685005870,0.0112956,88530.0,88515.0,0.04651]
[1764685005871,0.0112956,88530.0,88522.0,0.01824]
[1764685006019,0.0112956,88530.0,88527.0,0.02287122]
[1764685006020,0.01129586,88528.0,88527.0,0.02287122]
[1764685007034,0.01129356,88546.0,88535.0,0.01129496]
[1764685007245,0.01129356,88546.0,88536.0,0.01824]
[1764685007246,0.01129445,88539.0,88536.0,0.01824]
[1764685007465,0.23715906,88549.0,88548.0,0.02287122]
[1764685007720,0.23715906,88549.0,88548.0,0.04111122]
[1764685008381,0.13715906,88549.0,88548.0,0.04111122]
[1764685008621,0.22585599,88552.0,88548.0,0.01824]
[1764685008821,0.01129024,88572.0,88565.0,0.02287122]
[1764685008950,0.01140452,88572.0,88565.0,0.02287122]
[1764685009151,0.00011428,88572.0,88570.0,0.02287122]
[1764685009505,0.00011428,88572.0,88558.0,0.02287122]
[1764685009506,0.01129126,88564.0,88558.0,0.02287122]
[1764685009650,0.01129165,88561.0,88558.0,0.02287122]
[1764685010042,0.01129165,88561.0,88555.0,0.02953241]
[1764685010043,0.01128986,88575.0,88567.0,0.02287122]
[1764685010262,0.01129063,88569.0,88568.0,0.02287122]
[1764685010478,0.23710327,88569.0,88568.0,0.04111122]
[1764685010678,0.22580941,88571.0,88568.0,0.04111122]
[1764685010957,0.00011428,88572.0,88571.0,0.02287122]
[1764685011160,0.00011428,88572.0,88571.0,0.08787122]
[1764685011358,0.00011428,88572.0,88571.0,0.17022122]
[1764685011599,0.00152592,88572.0,88571.0,0.18846122]
[1764685012735,0.00152592,88572.0,88571.0,0.58846122]
[1764685013338,0.00152592,88572.0,88571.0,0.56559]
[1764685013483,0.00152592,88572.0,88571.0,0.58846122]
[1764685013884,0.00152592,88572.0,88571.0,0.91146122]
[1764685014290,0.00352592,88572.0,88571.0,0.91246122]
[1764685014792,0.00152592,88572.0,88571.0,0.91146122]
[1764685015032,0.00152592,88572.0,88571.0,0.91246122]
[1764685015247,0.00152592,88572.0,88571.0,0.57122122]
[1764685015465,0.00152592,88572.0,88571.0,0.08424]
[1764685015668,0.00152592,88572.0,88571.0,0.066]
[1764685015885,0.00152592,88572.0,88571.0,0.01924]
[1764685016239,0.00352592,88572.0,88571.0,0.01924]
[1764685016449,0.00152592,88572.0,88571.0,0.01924]
[1764685016630,0.00152592,88572.0,88571.0,0.001]
[1764685016829,0.00352592,88572.0,88571.0,0.01924]
[1764685017097,0.00152592,88572.0,88571.0,0.01924]
[1764685017462,0.00152592,88572.0,88569.0,0.23710231]
[1764685017815,0.00011428,88572.0,88571.0,0.065]
[1764685017984,0.00211428,88572.0,88571.0,0.08787122]
[1764685018134,0.00152592,88572.0,88571.0,0.066]
[1764685018330,0.00152592,88572.0,88571.0,0.01924]
[1764685018574,0.00152592,88572.0,88558.0,0.01129203]
[1764685018575,0.0112905,88570.0,88558.0,0.01129203]
[1764685018775,0.01129139,88563.0,88560.0,0.23712736]
[1764685019158,0.00107421,88561.0,88557.0,0.01129216]
[1764685019344,0.01129126,88564.0,88558.0,0.01824]
[1764685019545,0.22582137,88566.0,88558.0,0.01824]
[1764685019546,0.23711238,88566.0,88558.0,0.27824327]
[1764685019857,0.01129114,88565.0,88563.0,0.02287122]
[1764685020059,0.01129088,88567.0,88564.0,0.22582451]
[1764685020282,0.03030487,88625.0,88563.0,0.03416261]
[1764685020283,0.00011428,88572.0,88568.0,0.01129075]
[1764685020450,0.00011428,88572.0,88571.0,0.02287122]
[1764685021084,0.22581315,88569.0,88565.0,0.25535346]
[1764685021302,0.22581615,88568.0,88566.0,0.02287122]
[1764685021470,0.00011428,88572.0,88565.0,0.02287122]
[1764685021471,0.01129037,88571.0,88565.0,0.02287122]
[1764685021674,0.01129037,88571.0,88558.0,0.01129203]
[1764685021675,0.22581601,88568.0,88566.0,0.01824]
[1764685022209,0.22581601,88568.0,88567.0,0.01824]
[1764685022210,0.01129075,88568.0,88567.0,0.01824]
[1764685022371,0.23710594,88568.0,88567.0,0.01824]
[1764685022571,0.01129152,88562.0,88557.0,0.23713506]
[1764685022783,0.23712469,88561.0,88560.0,0.02287122]
[1764685023018,0.23712469,88561.0,88554.0,0.01129254]
[1764685023019,0.22584319,88559.0,88556.0,0.02287122]
[1764685023218,0.01129177,88560.0,88558.0,0.2258405]
[1764685023416,0.2371253,88561.0,88558.0,0.2258405]
[1764685023612,0.225816,88568.0,88558.0,0.2258405]
[1764685023613,0.68644941,88570.0,88562.0,0.23712068]
[1764685023828,0.22582539,88564.0,88554.0,0.01129254]
[1764685024015,0.23711665,88564.0,88563.0,0.02287122]
[1764685024434,0.0112919,88559.0,88558.0,0.02287122]
[1764685024671,0.002,88560.0,88558.0,0.02287122]
[1764685024966,0.00101285,88559.0,88558.0,0.26000359]
[1764685025178,0.22685099,88559.0,88558.0,0.02287122]
[1764685025330,0.00101285,88559.0,88558.0,0.02287122]
[1764685025535,0.00101285,88559.0,88558.0,0.24871191]
[1764685025739,0.00101285,88559.0,88558.0,0.39305191]
[1764685027072,0.00301285,88559.0,88558.0,0.39305191]
[1764685027266,0.00301285,88559.0,88558.0,2.71605191]
[1764685027267,0.00101285,88559.0,88558.0,2.71605191]
[1764685027799,0.00301285,88559.0,88558.0,2.71605191]
[1764685028002,0.00101285,88559.0,88558.0,3.11605191]
[1764685028611,0.00101285,88559.0,88558.0,3.09318069]
[1764685028844,0.01128706,88597.0,88558.0,3.09318069]
[1764685028845,0.01128706,88597.0,88591.0,0.02287122]
[1764685029063,0.23703388,88595.0,88592.0,0.0182]
[1764685029272,0.0003807,88597.0,88592.0,0.0182]
[1764685029401,0.22574972,88594.0,88592.0,0.0182]
[1764685029610,0.0003807,88597.0,88593.0,0.01128757]
[1764685029814,0.01128731,88595.0,88592.0,0.0182]
[1764685029993,0.22575147,88593.0,88592.0,0.0182]
[1764685030193,0.0003807,88597.0,88593.0,0.23703666]
[1764685030393,0.01128719,88596.0,88592.0,0.0182]
[1764685030710,0.001,88594.0,88592.0,0.0302]
[1764685030911,0.22574637,88595.0,88592.0,0.0182]
[1764685031115,0.0003807,88597.0,88596.0,0.22574382]
[1764685031313,0.0003807,88597.0,88596.0,0.38828382]
[1764685031520,0.0003807,88597.0,88596.0,0.41115504]
[1764685031719,0.0003807,88597.0,88596.0,0.81115504]
[1764685032321,0.0003807,88597.0,88596.0,0.71060504]
[1764685032515,0.0003807,88597.0,88596.0,0.24394382]
[1764685032756,0.0003807,88597.0,88596.0,0.04107122]
[1764685032945,0.0003807,88597.0,88596.0,0.32880504]
[1764685033122,0.0003807,88597.0,88596.0,0.41115504]
[1764685033758,0.0013807,88597.0,88596.0,0.42515504]
[1764685034179,0.0003807,88597.0,88596.0,0.41115504]
[1764685034547,0.0013807,88597.0,88596.0,0.42515504]
[1764685035200,0.0013807,88597.0,88596.0,0.34280504]
[1764685035332,0.0013807,88597.0,88596.0,0.32460504]
[1764685035731,0.0013807,88597.0,88596.0,0.34280504]
[1764685035936,0.0013807,88597.0,88596.0,0.34380504]
[1764685036523,0.0012607,88597.0,88596.0,0.42615504]
[1764685036694,0.0012607,88597.0,88596.0,0.33880504]
[1764685036900,0.0012607,88597.0,88596.0,0.0332]
[1764685037044,0.0012607,88597.0,88596.0,0.28181504]
[1764685037243,0.0012607,88597.0,88596.0,0.25894382]
[1764685037450,0.0012607,88597.0,88596.0,0.32560504]
[1764685037704,0.0012607,88597.0,88596.0,0.34380504]
[1764685038558,0.0012607,88597.0,88596.0,0.42115504]
[1764685038761,0.0012607,88597.0,88596.0,0.34376504]
[1764685039179,0.0012607,88597.0,88596.0,0.32560504]
[1764685039476,0.0012607,88597.0,88596.0,0.28177504]
[1764685039680,0.00242629,88597.0,88596.0,0.34376504]
[1764685039876,0.00242629,88597.0,88596.0,0.42111504]
[1764685040174,0.00242629,88597.0,88596.0,0.28177504]
[1764685040437,0.00242629,88597.0,88596.0,0.015]
[1764685040667,0.00242629,88597.0,88596.0,0.05603122]
[1764685040900,0.00242629,88597.0,88596.0,0.28177504]
[1764685041131,0.22816756,88597.0,88596.0,0.03316]
[1764685041364,0.00142629,88597.0,88596.0,0.24390382]
[1764685041671,0.00142629,88597.0,88596.0,0.26677504]
[1764685041886,0.00242629,88597.0,88596.0,0.34176504]
[1764685042103,0.00242629,88597.0,88596.0,0.41911504]
[1764685043789,0.00242629,88597.0,88596.0,0.07499]
[1764685044000,0.00242629,88597.0,88596.0,0.03116]
[1764685044001,0.22816756,88597.0,88596.0,0.03116]
[1764685044202,0.22816756,88597.0,88596.0,0.03587122]
[1764685044697,0.22816756,88597.0,88596.0,0.05403122]
[1764685047270,0.23706176,88585.0,88582.0,0.22577834]
[1764685047464,0.0012607,88597.0,88591.0,0.01128782]
[1764685047703,0.0012607,88597.0,88596.0,0.31060504]
[1764685047992,0.0002607,88597.0,88596.0,0.31060504]
[1764685048143,0.0002607,88597.0,88596.0,0.38795504]
[1764685048710,0.0002607,88597.0,88596.0,0.31060504]
[1764685048968,0.0002607,88597.0,88596.0,0.38795504]
[1764685049785,0.0002607,88597.0,88596.0,2.77347803]
[1764685049992,0.0002607,88597.0,88596.0,2.68808382]
[1764685050204,0.0002607,88597.0,88596.0,1.12911504]
[1764685050367,0.001128,88617.0,88616.0,0.24856409]
[1764685050688,0.00124217,88617.0,88616.0,0.32871409]
[1764685050829,0.00124217,88617.0,88616.0,0.40606409]
[1764685051684,0.00124217,88617.0,88616.0,0.08486122]
[1764685051843,0.00224217,88617.0,88616.0,0.11702122]
[1764685052440,0.00224217,88617.0,88616.0,0.19537122]
[1764685052783,0.00402083,88617.0,88616.0,0.19537122]
[1764685053067,0.00302083,88617.0,88616.0,0.16321122]
[1764685053233,0.00302083,88617.0,88616.0,0.1575]
[1764685053432,0.00302083,88617.0,88616.0,0.18937122]
[1764685053634,0.00302083,88617.0,88616.0,0.58037122]
[1764685054035,0.00302083,88617.0,88616.0,0.59137122]
[1764685054237,0.00302083,88617.0,88616.0,0.49115]
[1764685054449,0.00302083,88617.0,88616.0,0.07299]
[1764685054653,0.00302083,88617.0,88616.0,0.1695]
[1764685054833,0.00302083,88617.0,88616.0,0.19237122]
[1764685055199,0.00302083,88617.0,88616.0,0.43487122]
[1764685055333,0.00302083,88617.0,88616.0,0.03016]
[1764685055535,0.00302083,88617.0,88616.0,0.05303122]
[1764685055737,0.00302083,88617.0,88616.0,0.17104]
[1764685055924,0.00302083,88617.0,88616.0,0.19391122]
[1764685056324,0.00302083,88617.0,88616.0,0.18191122]
[1764685056779,0.00302083,88617.0,88616.0,0.19091122]
[1764685056973,0.00302083,88617.0,88616.0,0.18191122]
[1764685057173,0.00302083,88617.0,88616.0,0.2044805]
[1764685057432,0.00302083,88617.0,88616.0,0.2154805]
[1764685057640,0.00302083,88617.0,88616.0,0.2044805]
[1764685057877,0.00302083,88617.0,88616.0,0.2054805]
[1764685058089,0.00302083,88617.0,88616.0,0.2174805]
[1764685058453,0.00302083,88617.0,88616.0,0.1983205]
[1764685058629,0.00302083,88617.0,88616.0,0.2164805]
[1764685059193,0.00302083,88617.0,88616.0,0.6164805]
[1764685059397,0.00302083,88617.0,88616.0,0.58191122]
[1764685059893,0.00302083,88617.0,88616.0,2.58191122]
[1764685060118,0.00302083,88617.0,88616.0,2.58291122]
[1764685060301,0.00302083,88617.0,88616.0,2.59491122]
[1764685060495,0.00302083,88617.0,88616.0,2.59391122]
[1764685060727,0.00302083,88617.0,88616.0,2.58191122]
[1764685060924,0.00302083,88617.0,88616.0,2.58291122]
[1764685061127,0.00302083,88617.0,88616.0,2.59591122]
[1764685061330,0.00302083,88617.0,88616.0,2.59491122]
[1764685061534,0.00302083,88617.0,88616.0,2.57675122]
[1764685061733,0.00302083,88617.0,88616.0,0.59491122]
[1764685061963,0.00302083,88617.0,88616.0,0.59591122]
[1764685062566,0.00302083,88617.0,88616.0,0.80344409]
[1764685062768,0.00302083,88617.0,88616.0,0.82160409]
[1764685062997,0.00302083,88617.0,88616.0,0.80344409]
[1764685063146,0.00302083,88617.0,88616.0,0.82156409]
[1764685063348,0.00302083,88617.0,88616.0,0.32609409]
[1764685063548,0.00302083,88617.0,88616.0,0.28068409]
[1764685063768,0.00302083,88617.0,88616.0,0.32134287]
[1764685063999,0.00302083,88617.0,88616.0,0.42156409]
[1764685064307,0.00302083,88617.0,88616.0,0.42056409]
[1764685065497,0.00302083,88617.0,88616.0,0.40756409]
[1764685065695,0.00302083,88617.0,88616.0,0.38944409]
[1764685065870,0.00302083,88617.0,88616.0,0.81756409]
[1764685066082,0.00302083,88617.0,88616.0,0.80756409]
[1764685066593,0.00302083,88617.0,88616.0,0.80244409]
[1764685066802,0.00302083,88617.0,88616.0,0.82056409]
[1764685067167,0.00302083,88617.0,88616.0,0.80344409]
[1764685067368,0.00302083,88617.0,88616.0,0.82156409]
[1764685067562,0.00302083,88617.0,88616.0,0.82056409]
[1764685067802,0.00302083,88617.0,88616.0,0.80244409]
[1764685068002,0.00302083,88617.0,88616.0,0.42156409]
[1764685068259,0.00302083,88617.0,88616.0,0.32609409]
[1764685068581,0.00302083,88617.0,88616.0,0.42156409]
[1764685070381,0.00302083,88617.0,88616.0,0.40344409]
[1764685070729,0.00302083,88617.0,88616.0,0.42156409]
[1764685071983,0.00302083,88617.0,88616.0,0.39869287]
[1764685072300,0.00302083,88617.0,88616.0,0.82156409]
[1764685073352,0.00302083,88617.0,88616.0,0.80344409]
[1764685073599,0.00302083,88617.0,88616.0,0.82156409]
[1764685074463,0.00302083,88617.0,88616.0,0.80344409]
[1764685074670,0.00302083,88617.0,88616.0,0.82156409]
[1764685074889,0.00302083,88617.0,88616.0,0.78057287]
[1764685075067,0.00302083,88617.0,88616.0,0.72134287]
[1764685075274,0.00302083,88617.0,88616.0,0.82156409]
[1764685076003,0.00302083,88617.0,88616.0,0.80344409]
[1764685076203,0.00302083,88617.0,88616.0,0.82156409]
[1764685076518,0.00302083,88617.0,88616.0,0.74421409]
[1764685076900,0.00302083,88617.0,88616.0,0.82156409]
[1764685078326,0.00302083,88617.0,88616.0,0.80344409]
[1764685078884,0.00302083,88617.0,88616.0,0.82156409]
[1764685081131,0.00302083,88617.0,88616.0,0.80344409]
[1764685081339,8.198e-05,88635.0,88634.0,0.22564704]
[1764685081669,8.198e-05,88635.0,88634.0,0.41196296]
[1764685081881,8.198e-05,88635.0,88634.0,0.31204826]
[1764685082082,8.198e-05,88635.0,88634.0,0.62564704]
[1764685082283,0.01128337,88626.0,88619.0,0.02287122]
[1764685082450,0.2256879,88618.0,88616.0,0.014]
[1764685082646,0.1122,88620.0,88588.0,0.13785101]
[1764685082647,0.23702865,88597.0,88590.0,0.01128795]
[1764685083504,0.23699426,88610.0,88607.0,0.02287122]
[1764685083757,0.01128553,88609.0,88602.0,0.01128642]
[1764685084034,0.06419,88607.0,88604.0,0.01128617]
[1764685084411,0.01128604,88605.0,88601.0,0.02287122]
[1764685084576,0.22572808,88603.0,88601.0,0.02287122]
[1764685084775,0.22572808,88603.0,88592.0,0.0112877]
[1764685084776,0.22573673,88599.0,88594.0,0.01128744]
[1764685085030,0.01128629,88603.0,88594.0,0.01128744]
[1764685085031,0.01128642,88602.0,88599.0,0.23702197]
[1764685085182,0.01128477,88615.0,88600.0,0.01128668]
[1764685085381,0.01128579,88607.0,88603.0,0.01128629]
[1764685085641,0.01128591,88606.0,88603.0,0.01128629]
[1764685085817,0.22572193,88605.0,88602.0,0.008]
[1764685086024,0.23700797,88605.0,88602.0,0.008]
[1764685086193,0.23700797,88605.0,88601.0,0.23701651]
[1764685086389,0.01128553,88609.0,88604.0,0.01128617]
[1764685086628,0.01128515,88612.0,88607.0,0.01128579]
[1764685086828,0.06295,88605.0,88603.0,0.24501195]
[1764685087041,0.28867156,88605.0,88603.0,0.008]
[1764685087360,0.22572374,88604.0,88602.0,0.01812]
[1764685087532,0.22572374,88604.0,88602.0,0.02612]
[1764685087740,0.22572374,88604.0,88602.0,0.008]
[1764685087741,0.23677491,88603.0,88602.0,0.008]
[1764685087917,0.22575656,88591.0,88561.0,0.225832]
[1764685088122,0.30822469,88591.0,88569.0,0.01812]
[1764685088319,0.40352469,88591.0,88569.0,0.01812]
[1764685088542,0.40352469,88591.0,88569.0,0.02941063]
[1764685088943,0.40352469,88591.0,88564.0,0.01129126]
[1764685089120,0.40352469,88591.0,88520.0,0.67388521]
[1764685089121,0.40352469,88591.0,88547.0,0.06671122]
[1764685089122,0.01129267,88553.0,88547.0,0.06671122]
[1764685089324,0.01129267,88553.0,88547.0,0.0003807]
[1764685089325,0.01129305,88550.0,88547.0,0.0003807]
[1764685089660,0.01129241,88555.0,88550.0,0.03416427]
[1764685089839,0.01129305,88550.0,88547.0,0.0003807]
[1764685090155,0.10659241,88555.0,88550.0,0.22585928]
[1764685090360,0.0953,88558.0,88553.0,0.22585218]
[1764685090537,0.10659203,88558.0,88554.0,0.01129254]
[1764685090739,0.01129216,88557.0,88554.0,0.01129254]
[1764685090923,0.23713655,88557.0,88553.0,0.01129267]
[1764685091127,0.0953,88557.0,88556.0,0.02287122]
[1764685091328,0.04987,88559.0,88557.0,0.2258427]
[1764685091530,0.15825,88558.0,88557.0,0.2258427]
[1764685091747,0.01129254,88554.0,88544.0,0.01129382]
[1764685091960,0.04987,88559.0,88550.0,0.01129305]
[1764685092167,0.04987,88559.0,88547.0,0.0003807]
[1764685092168,0.01129075,88568.0,88558.0,0.01129203]
[1764685092362,0.01129228,88556.0,88553.0,0.006]
[1764685092542,0.2258493,88555.0,88553.0,0.006]
[1764685092742,0.2258493,88555.0,88547.0,0.0003807]
[1764685092743,0.27573619,88548.0,88547.0,0.0003807]
[1764685092947,0.28257619,88548.0,88547.0,0.0073807]
[1764685093162,0.4761484,88548.0,88547.0,0.0073807]
[1764685093477,0.4761484,88548.0,88501.0,0.04384]
[1764685093478,0.4761484,88548.0,88513.0,0.01129777]
[1764685093479,0.01129713,88518.0,88513.0,0.01129777]
[1764685093799,0.01129637,88524.0,88513.0,0.01129777]
[1764685093800,0.06824813,88528.0,88520.0,0.01129688]
[1764685093944,0.01129458,88538.0,88530.0,0.0112956]
[1764685094145,0.01129458,88538.0,88531.0,0.22590722]
[1764685094396,0.0953,88545.0,88531.0,0.22590722]
[1764685094397,0.23715086,88552.0,88539.0,0.01129445]
[1764685094698,0.23715086,88552.0,88541.0,0.0112942]
[1764685094699,0.01129356,88546.0,88541.0,0.0112942]
[1764685095033,0.01129356,88546.0,88537.0,0.02287122]
[1764685095034,0.01129471,88537.0,88520.0,0.01129688]
[1764685095181,0.23720588,88531.0,88519.0,0.011297]
[1764685095379,0.23720588,88531.0,88517.0,0.01816]
[1764685095380,0.01129496,88535.0,88528.0,0.01129586]
[1764685095565,0.01129496,88535.0,88527.0,0.02287122]
[1764685095566,0.23720126,88533.0,88527.0,0.02287122]
[1764685095766,0.23721308,88528.0,88524.0,0.02287122]
[1764685096038,0.23720098,88533.0,88525.0,0.01129624]
[1764685096168,0.23720983,88530.0,88525.0,0.01129624]
[1764685096359,0.01129586,88528.0,88524.0,0.03428187]
[1764685096559,0.22591977,88527.0,88524.0,0.0229855]
[1764685096810,0.67388521,88540.0,88526.0,0.01129611]
[1764685097109,0.0112956,88530.0,88526.0,0.01129611]
[1764685097254,0.0112956,88530.0,88524.0,0.0269855]
[1764685097255,0.01129356,88546.0,88527.0,0.02259197]
[1764685097460,0.06824813,88547.0,88524.0,0.00411428]
[1764685097461,0.06186,88525.0,88524.0,0.00411428]
[1764685097705,0.09721454,88525.0,88524.0,0.00411428]
[1764685097909,0.19217454,88525.0,88524.0,0.00411428]
[1764685098389,0.15682,88525.0,88524.0,0.00411428]
[1764685098577,0.29491796,88525.0,88524.0,0.00411428]
[1764685098754,0.27204596,88525.0,88524.0,0.00011428]
[1764685098962,0.15682,88525.0,88524.0,0.00011428]
[1764685099162,0.15682,88525.0,88524.0,0.00511428]
[1764685099367,2.15682,88525.0,88524.0,0.00011428]
[1764685099570,0.22598614,88501.0,88500.0,0.0004]
[1764685099768,0.22598614,88501.0,88500.0,0.00051432]
[1764685099769,0.34505427,88501.0,88500.0,0.00051432]
[1764685099973,0.34505427,88501.0,88484.0,0.00244544]
[1764685099974,0.01130109,88487.0,88484.0,0.00244544]
[1764685100178,0.05082,88501.0,88492.0,0.01130045]
[1764685100490,0.01129956,88499.0,88494.0,0.23730422]
[1764685100690,0.0113002,88494.0,88489.0,0.23731583]
[1764685100905,0.0113002,88494.0,88480.0,0.22603859]
[1764685100906,0.01130032,88493.0,88483.0,0.26346327]
[1764685101201,0.37115766,88501.0,88494.0,0.0113002]
[1764685101202,0.27585766,88501.0,88494.0,0.0113002]
[1764685101400,0.04987,88501.0,88496.0,0.01129994]
[1764685101566,0.28715744,88501.0,88496.0,0.2372967]
[1764685101763,0.28715744,88501.0,88500.0,0.002]
[1764685102153,0.28715744,88501.0,88489.0,0.01130083]
[1764685102154,0.35010744,88501.0,88489.0,0.01130083]
[1764685102350,0.22599325,88499.0,88488.0,0.02287122]
[1764685102556,0.01129981,88497.0,88494.0,0.22800284]
[1764685102765,0.01129981,88497.0,88494.0,0.0113002]
[1764685102981,0.01129981,88497.0,88493.0,0.01130032]
[1764685103205,0.01129981,88497.0,88494.0,0.0113002]
[1764685103414,0.16161813,88509.0,88493.0,0.01130032]
[1764685103415,0.01129752,88515.0,88509.0,0.01129828]
[1764685103620,0.01129752,88515.0,88503.0,0.01129905]
[1764685103621,0.22596555,88510.0,88507.0,0.01129854]
[1764685103859,0.27582566,88513.0,88507.0,0.01129854]
[1764685103860,0.04987,88513.0,88510.0,0.01129815]
[1764685104017,0.04987,88513.0,88510.0,0.23726045]
[1764685104220,0.04987,88513.0,88511.0,0.22595997]
[1764685104635,0.04987,88513.0,88510.0,0.23726045]
[1764685104636,0.04987,88528.0,88516.0,0.23724408]
[1764685104840,0.04987,88528.0,88525.0,0.01129624]
[1764685105066,0.04987,88528.0,88525.0,0.23721979]
[1764685105313,0.04987,88528.0,88526.0,0.22592177]
[1764685105514,0.049984,88528.0,88526.0,0.22592177]
[1764685105841,0.000114,88528.0,88526.0,0.22592177]
[1764685106148,0.000114,88528.0,88525.0,0.03416746]
[1764685106357,0.000114,88528.0,88526.0,0.22892183]
[1764685106767,0.000114,88528.0,88527.0,0.18114122]
[1764685107827,0.000114,88528.0,88527.0,0.19930122]
[1764685108194,0.000114,88528.0,88527.0,0.18214122]
[1764685108386,0.000114,88528.0,88527.0,0.20030122]
[1764685108504,0.001114,88528.0,88527.0,0.20630122]
[1764685108701,0.000114,88528.0,88527.0,0.20030122]
[1764685108899,0.000114,88528.0,88527.0,0.60030122]
[1764685109113,0.000114,88528.0,88527.0,0.47202]
[1764685109316,0.000114,88528.0,88527.0,0.02416]
[1764685109520,0.28738122,88528.0,88527.0,0.007]
[1764685109773,0.43592894,88528.0,88527.0,0.007]
[1764685110092,0.38234122,88528.0,88527.0,0.007]
[1764685110304,0.38234122,88528.0,88527.0,0.006]
[1764685110667,0.22594529,88517.0,88516.0,0.01816]
[1764685111088,0.01129662,88522.0,88516.0,0.01816]
[1764685111089,0.095074,88528.0,88516.0,0.01816]
[1764685111297,0.01129624,88525.0,88517.0,0.01129726]
[1764685111499,0.01140986,88528.0,88517.0,0.01129726]
[1764685111500,0.000114,88528.0,88527.0,0.001]
[1764685111704,0.000114,88528.0,88527.0,0.02287122]
[1764685111888,0.000114,88528.0,88526.0,0.22592035]
[1764685112070,0.000114,88528.0,88527.0,0.15827]
[1764685112414,0.000114,88528.0,88527.0,0.18114122]